fUST/lending_fUST_20260129
["ID","MTS","AMOUNT","RATE_DAILY","PERIOD"]
[403914833,1769673369432,-671.67,0.0003463,120]
[403914834,1769673369462,-671.67,0.0003463,120]
[403914835,1769673369493,-671.67,0.0003463,120]
[403914836,1769673369524,-671.67,0.0003463,120]
[403914837,1769673369555,-671.67,0.0003463,120]
[403914838,1769673369587,-671.67,0.0003463,120]
[403914839,1769673369623,-671.67,0.0003463,120]
[403914840,1769673369653,-671.67,0.0003463,120]
[403914841,1769673369688,-671.67,0.0003463,120]
[403914842,1769673369719,-671.67,0.0003463,120]
[403914843,1769673369755,-671.67,0.0003463,120]
[403914844,1769673369787,-671.67,0.0003463,120]
[403914845,1769673369818,-671.67,0.0003463,120]
[403914846,1769673369850,-671.67,0.0003463,120]
[403914847,1769673369885,-671.67,0.0003463,120]
[403914848,1769673369917,-671.67,0.0003463,120]
[403914849,1769673369948,-671.67,0.0003463,120]
[403914850,1769673370068,-671.75781361,0.0003463,120]
[403914851,1769673370119,-154.07843336,0.0003463,120]
[403914852,1769673370149,-3582.24595009,0.0003463,120]
[403914853,1769673370178,-167.0217825,0.0003463,120]
[403914854,1769673370208,-500.0,0.0003463,120]
[403914855,1769673370238,-500.0,0.0003463,120]
[403914856,1769673370266,-500.0,0.0003463,120]
[403914857,1769673370295,-500.0,0.0003463,120]
[403914858,1769673370324,-500.0,0.0003463,120]
[403914859,1769673370354,-500.0,0.0003463,120]
[403914860,1769673370384,-182.31618712,0.0003463,120]
[403914861,1769673370412,-610.91357166,0.0003463,120]
[403914862,1769673370442,-500.0,0.0003463,120]
[403914863,1769673370472,-167.82619954,0.0003463,120]
[403914864,1769673370502,-167.82619953,0.0003463,120]
[403914865,1769673370530,-500.0,0.0003463,120]
[403914866,1769673370558,-456.35677617,0.0003463,120]
[403914867,1769673370587,-50000.0,0.0003463,120]
[403914868,1769673370618,-500.0,0.0003463,120]
[403914869,1769673370649,-500.0,0.0003463,120]
[403914870,1769673370684,-500.0,0.0003463,120]
[403914871,1769673370718,-500.0,0.0003463,120]
[403914872,1769673370749,-500.0,0.0003463,120]
[403914873,1769673370780,-500.0,0.0003463,120]
[403914874,1769673370810,-499.82164215,0.0003463,120]
[403914875,1769673370840,-970.85512584,0.0003463,120]
[403914876,1769673370869,-188.55419663,0.0003463,120]
[403914877,1769673370901,-188.55419663,0.0003463,120]
[403914878,1769673370931,-188.55419663,0.0003463,120]
[403914879,1769673370960,-108786.85002944,0.0003463,120]
[403914880,1769673370990,-316.6473,0.0003463,120]
[403914881,1769673371019,-309.1673,0.0003463,120]
[403914882,1769673371050,-163.81803672,0.0003463,120]
[403914883,1769673371085,-2164.72104957,0.0003463,120]
[403914884,1769673371114,-163.81803673,0.0003463,120]
[403914885,1769673371357,19376.11500034,0.0003463,120]
[403914886,1769673373007,273.66098219,0.0003463,120]
[403914887,1769673388309,900.54002351,0.0003463,120]
[403914888,1769673405354,-151.80242089,0.00011738,2]
[403914889,1769673407725,-154.54,0.00011738,2]
[403914890,1769673413618,-303.08,0.00011738,2]
[403914891,1769673415188,-286.38270179,0.00011738,2]
[403914892,1769673418400,-199.28788773,0.00011738,2]
[403914893,1769673421619,-151.46000003,0.00011738,2]
[403914894,1769673424006,-215.94305162,0.00011738,2]
[403914895,1769673426444,-307.18817487,0.00011738,2]
[403914896,1769673429519,-157.52,0.00011738,2]
[403914897,1769673431695,-304.54,0.00011738,2]
[403914898,1769673437485,-198.99663013,0.00011738,2]
[403914899,1769673439749,-158.6,0.00011738,2]
[403914900,1769673441907,-295.10211849,0.00011738,2]
[403914901,1769673525552,-228.98235327,0.00011738,2]
[403914902,1769673525576,-145.42210795,0.00011797,2]
[403914903,1769673601033,-199.67986037,0.00011562,2]
[403914904,1769673605637,-225.54373952,0.00011562,2]
[403914905,1769673609492,-297.8959742,0.00011562,2]
[403914906,1769673613514,-210.90587855,0.00011562,2]
[403914907,1769673615096,-162.61758528,0.00011562,2]
[403914908,1769673617162,-277.04905992,0.00011562,2]
[403914909,1769673619813,-175.5040566,0.00011562,2]
[403914910,1769673622218,-256.86182513,0.00011562,2]
[403914911,1769673625744,-156.65967262,0.00011562,2]
[403914912,1769673629518,-567.64803114,0.00011562,2]
[403914913,1769673633702,-262.98676407,0.00011562,2]
[403914914,1769673637908,-299.1739447,0.00011562,2]
[403914915,1769673640146,-197.38113074,0.00011562,2]
[403914916,1769673641866,-210.09255411,0.00011562,2]
[403914917,1769673650686,-631.42467637,0.00011562,2]
[403914918,1769673652986,-596.49243369,0.00011562,2]
[403914919,1769673655283,-246.96224345,0.00011562,2]
[403914920,1769673658755,-25.12056954,0.00011562,2]
[403914921,1769673658777,-386.63466021,0.00011562,2]
[403914922,1769673676263,-197.02923964,0.00011332,2]
[403914923,1769673678270,-170.58861361,0.00011332,2]
[403914924,1769673683654,-228.87458044,0.00011332,2]
[403914925,1769673683684,-1000.93702194,0.00011446,2]
[403914926,1769673683719,-196.36533979,0.00011562,2]
[403914927,1769673683752,-1200.0,0.00011678,2]
[403914928,1769673683901,-5000.0,0.00011679,2]
[403914929,1769673686563,-72.6179226,0.00011797,2]
[403914930,1769673686595,-300.0,0.00011856,2]
[403914931,1769673686627,-1789.35700303,0.00011857,2]
[403914932,1769673689679,-4323.94985126,0.00011857,2]
[403914933,1769673692772,-1352.11029748,0.00011857,2]
[403914934,1769673692805,-500.0,0.00012092,2]
[403914935,1769673692841,-500.0,0.00012092,2]
[403914936,1769673692874,-500.0,0.00012092,2]
[403914937,1769673692904,-380.47382401,0.00012092,2]
[403914938,1769673692937,-396.52223246,0.00012092,2]
[403914939,1769673692968,-581.61870321,0.00012092,2]
[403914940,1769673693002,-500.0,0.00012092,2]
[403914941,1769673693035,-78.55988568,0.00012092,2]
[403914942,1769673695915,-421.44011432,0.00012092,2]
[403914943,1769673695948,-300.0,0.00012093,2]
[403914944,1769673695980,-300.0,0.00012093,2]
[403914945,1769673696017,-300.0,0.00012093,2]
[403914946,1769673696218,-300.0,0.00012093,2]
[403914947,1769673696252,-300.0,0.00012093,2]
[403914948,1769673696286,-300.0,0.00012093,2]
[403914949,1769673696317,-300.0,0.00012093,2]
[403914950,1769673696348,-300.0,0.00012093,2]
[403914951,1769673696380,-300.0,0.00012093,2]
[403914952,1769673696412,-300.0,0.00012093,2]
[403914953,1769673696443,-300.0,0.00012093,2]
[403914954,1769673696476,-300.0,0.00012093,2]
[403914955,1769673696507,-300.0,0.00012093,2]
[403914956,1769673696539,-300.0,0.00012093,2]
[403914957,1769673696571,-300.0,0.00012093,2]
[403914958,1769673696603,-6.12977136,0.000123,2]
[403914959,1769673731034,-1342.47504439,0.00011934,2]
[403914960,1769673731066,-2315.05991122,0.00012055,2]
[403914961,1769673733892,-2684.94008878,0.00012055,2]
[403914962,1769673733925,-300.0,0.00012176,2]
[403914963,1769673743169,-5000.0,0.00012177,2]
[403914994,1769674078390,-376.6551949,0.00011265,2]
[403914995,1769674078422,-4246.6996102,0.00011793,2]
[403914996,1769674084090,259.91,2.997e-05,2]
[403914997,1769674084566,259.91,2.997e-05,2]
[403914998,1769674084877,259.89,2.997e-05,2]
[403914999,1769674087500,-753.3003898,0.00011793,2]
[403915000,1769674087533,-300.0,0.00011911,2]
[403915001,1769674087564,-2769.1449199,0.00011912,2]
[403915002,1769674090543,-2355.1193806,0.00011912,2]
[403915003,1769674090574,-534.1464331,0.00011912,2]
[403915004,1769674090606,-1200.0,0.00012054,2]
[403915007,1769674170366,-546.41667494,0.00011339,2]
[403915008,1769674173528,-198.0,0.00011339,2]
[403915009,1769674176197,-307.00384222,0.00011339,2]
[403915010,1769674178009,-224.2,0.00011339,2]
[403915011,1769674179791,-209.39350027,0.00011339,2]
[403915034,1769674231821,-579.0,0.00011339,2]
[403915036,1769674231831,-242.43540837,0.00011339,2]
[403915038,1769674231840,-5000.0,0.00011934,2]
[403915040,1769674231850,-222.74427843,0.00011995,2]
[403915042,1769674231859,-2068.75776269,0.00011995,2]
[403915044,1769674231868,-6841.78377693,0.000122,2]
[403915168,1769674237921,-16194.75259028,0.000122,2]
[403915169,1769674237933,-14641.46057963,0.000122,2]
[403915170,1769674237944,-6221.97809751,0.000122,2]
[403915171,1769674238197,-57283.9246237,0.000122,2]
[403915172,1769674238209,-7093.22178022,0.000122,2]
[403915173,1769674238221,-440.25,0.000122,2]
[403915219,1769674240150,-5000.0,0.00012078,2]
[403915220,1769674240160,-373.78270372,0.000122,2]
[403915221,1769674240171,-790.60290983,0.000122,2]
[403915222,1769674240182,-1570.23052842,0.000122,2]
[403915228,1769674240591,-3e-08,0.000122,2]
[403915229,1769674240602,-1767.31023342,0.000122,2]
[403915235,1769674244692,-13491.23033007,0.000122,2]
[403915236,1769674244704,-4260.0,0.000122,2]
[403915237,1769674244715,-682.6623395,0.000122,2]
[403915241,1769674246061,-55010.45687543,0.000122,2]
[403915249,1769674328946,-159.216,0.00011956,2]
[403915250,1769674328979,-178.73770675,0.00011956,2]
[403915251,1769674329014,-4324.1025865,0.00011957,2]
[403915252,1769674335042,-675.8974135,0.00011957,2]
[403915253,1769674386001,2012.0,0.00030136,120]
[403915254,1769674416960,-5000.0,0.00011957,2]
[403915255,1769674417175,-2859.7712993,0.00012078,2]
[403915256,1769674417211,-300.0,0.00012199,2]
[403915257,1769674417283,-2803.93345353,0.000122,2]
[403915258,1769674419837,-10000.01,0.000122,2]
[403915259,1769674422977,-10000.01,0.000122,2]
[403915276,1769674524146,-158.81,0.00011856,7]
[403915277,1769674524176,-256.64624404,0.00011857,2]
[403915278,1769674524208,-218.28939286,0.00011896,2]
[403915279,1769674524238,-176.93253329,0.00011934,2]
[403915280,1769674524267,-2398.4119403,0.00011957,2]
[403915281,1769674524474,-3581.82977902,0.00012078,2]
[403915282,1769674530212,-1418.17022098,0.00012078,2]
[403915283,1769674530243,-188.08285418,0.000121,2]
[403915284,1769674530272,-1842.77799216,0.000121,2]
[403915285,1769674530314,-300.0,0.00012199,2]
[403915286,1769674530402,-2501.94786536,0.000122,2]
[403915287,1769674585847,-898.5803346,0.00034587,30]
[403915288,1769674585883,-344.72323359,0.00034587,60]
[403915289,1769674585917,-780.24772713,0.00034587,30]
[403915290,1769674585951,-267.32291344,0.00034587,60]
[403915291,1769674585983,-280.60612604,0.00034587,30]
[403915292,1769674586016,-1058.51045094,0.00034587,30]
[403915293,1769674586050,-1005.69307008,0.00034587,30]
[403915294,1769674586082,-225.32261913,0.00034587,30]
[403915295,1769674586114,-256.06162549,0.00034587,33]
[403915296,1769674586151,-218.93660605,0.00034587,31]
[403915297,1769674586187,-604.29955456,0.00034587,30]
[403915298,1769674586223,-9858.14501505,0.00034587,60]
[403915299,1769674586256,-398.13515817,0.00034587,30]
[403915300,1769674586289,-500.0,0.00034587,90]
[403915301,1769674586326,-515.05645354,0.00034587,30]
[403915302,1769674586361,-500.50660781,0.00034587,30]
[403915303,1769674586395,-619.26768718,0.00034587,60]
[403915304,1769674586429,-500.0,0.00034587,30]
[403915305,1769674586463,-500.0,0.00034587,90]
[403915306,1769674586498,-500.0,0.00034587,90]
[403915307,1769674586530,-597.5875146,0.00034587,30]
[403915308,1769674586563,-524.48714351,0.00034587,60]
[403915309,1769674586596,-500.0,0.00034587,90]
[403915310,1769674586631,-261.25709668,0.00034587,30]
[403915311,1769674586664,-500.0,0.00034587,90]
[403915312,1769674586697,-500.0,0.00034587,90]
[403915313,1769674586731,-500.0,0.00034587,60]
[403915314,1769674586764,-221.81452959,0.00034587,60]
[403915315,1769674586812,-515.17243438,0.00034587,30]
[403915316,1769674586847,-271.767025,0.00034587,30]
[403915317,1769674586882,-545.15368778,0.00034587,30]
[403915318,1769674586918,-2082.93493111,0.00034587,30]
[403915319,1769674586954,-176.07367423,0.00034587,30]
[403915320,1769674586990,-154.72269088,0.00034587,30]
[403915321,1769674587026,-740.21243759,0.00034587,30]
[403915322,1769674587062,-635.8873762,0.00034587,30]
[403915323,1769674587098,-508.84912107,0.00034587,90]
[403915324,1769674587135,-500.0,0.00034587,90]
[403915325,1769674587175,-500.0,0.00034587,90]
[403915326,1769674587212,-500.0,0.00034587,60]
[403915327,1769674587247,-500.0,0.00034587,30]
[403915328,1769674587282,-13166.28756754,0.00034587,60]
[403915329,1769674587316,-10630.53009232,0.00034587,60]
[403915330,1769674587351,-4716.01206344,0.00034587,60]
[403915331,1769674587385,-10630.53009232,0.00034587,60]
[403915332,1769674587420,-500.0,0.00034587,30]
[403915333,1769674587456,-500.0,0.00034587,60]
[403915334,1769674587492,-500.0,0.00034587,30]
[403915335,1769674587528,-500.0,0.00034587,90]
[403915336,1769674587563,-500.0,0.00034587,90]
[403915337,1769674587595,-500.0,0.00034587,90]
[403915338,1769674587629,-500.0,0.00034587,90]
[403915339,1769674587664,-500.66386235,0.00034587,60]
[403915340,1769674587700,-500.0,0.00034587,30]
[403915341,1769674587734,-505.71080134,0.00034587,30]
[403915342,1769674587768,-506.87421556,0.00034587,30]
[403915343,1769674587803,-500.0,0.00034587,60]
[403915344,1769674587839,-500.0,0.00034587,60]
[403915345,1769674587874,-500.0,0.00034587,30]
[403915346,1769674587908,-500.0,0.00034587,60]
[403915347,1769674587943,-200.40318917,0.00034587,60]
[403915348,1769674587978,-500.0,0.00034587,30]
[403915349,1769674588016,-500.66762584,0.00034587,60]
[403915350,1769674588204,-500.0,0.00034587,60]
[403915351,1769674588244,-500.0,0.00034587,30]
[403915352,1769674588279,-500.0,0.00034587,90]
[403915353,1769674588314,-454.27716887,0.00034587,30]
[403915354,1769674588354,-41282.69790132,0.00034587,35]
[403915355,1769674588389,-112208.30471032,0.00034587,30]
[403915356,1769674588424,-369.47078343,0.00034587,90]
[403915357,1769674588457,-500.0,0.00034587,90]
[403915358,1769674588493,-500.0,0.00034587,30]
[403915359,1769674588528,-452.74610098,0.00034587,30]
[403915360,1769674588563,-500.0,0.00034587,90]
[403915361,1769674588597,-1253.9,0.00034587,90]
[403915362,1769674588631,-1253.9,0.00034587,90]
[403915363,1769674588666,-1253.9,0.00034587,90]
[403915364,1769674588699,-1253.9,0.00034587,90]
[403915365,1769674588733,-1253.9,0.00034587,90]
[403915366,1769674588764,-1253.9,0.00034587,90]
[403915367,1769674588799,-1253.9,0.00034587,90]
[403915368,1769674588831,-1253.9,0.00034587,90]
[403915369,1769674588864,-1253.9,0.00034587,90]
[403915370,1769674588896,-1253.9,0.00034587,90]
[403915371,1769674588928,-1253.9,0.00034587,90]
[403915372,1769674588964,-1253.9,0.00034587,90]
[403915373,1769674588996,-1253.9,0.00034587,90]
[403915374,1769674589029,-1253.9,0.00034587,90]
[403915375,1769674589062,-1253.9,0.00034587,90]
[403915376,1769674589095,-1253.9,0.00034587,90]
[403915377,1769674589129,-1253.9,0.00034587,90]
[403915378,1769674589168,-1253.9,0.00034587,90]
[403915379,1769674589200,-1253.9,0.00034587,90]
[403915380,1769674589233,-1253.9,0.00034587,90]
[403915381,1769674589265,-1253.9,0.00034587,90]
[403915382,1769674589297,-1253.9,0.00034587,90]
[403915383,1769674589331,-1253.9,0.00034587,90]
[403915384,1769674589364,-1253.90437091,0.00034587,90]
[403915385,1769674589398,-500.0,0.00034587,30]
[403915386,1769674589431,-500.0,0.00034587,30]
[403915387,1769674589464,-500.0,0.00034587,30]
[403915388,1769674589497,-500.0,0.00034587,30]
[403915389,1769674589528,-500.0,0.00034587,30]
[403915390,1769674589559,-500.0,0.00034587,30]
[403915391,1769674589589,-500.0,0.00034587,30]
[403915392,1769674589619,-500.0,0.00034587,30]
[403915393,1769674589649,-500.0,0.00034587,30]
[403915394,1769674589679,-500.0,0.00034587,30]
[403915395,1769674589710,-500.0,0.00034587,30]
[403915396,1769674589739,-500.0,0.00034587,30]
[403915397,1769674589768,-500.0,0.00034587,30]
[403915398,1769674589799,-500.0,0.00034587,30]
[403915399,1769674589828,-500.0,0.00034587,30]
[403915400,1769674589858,-500.0,0.00034587,30]
[403915401,1769674589889,-500.0,0.00034587,30]
[403915402,1769674589921,-500.0,0.00034587,30]
[403915403,1769674589952,-500.0,0.00034587,30]
[403915404,1769674589985,-500.0,0.00034587,30]
[403915405,1769674590018,-154.28945192,0.00034587,30]
[403915406,1769674590051,-31443.57360965,0.00034587,30]
[403915407,1769674590086,-16591.66589034,0.00034587,30]
[403915408,1769674590121,-165037.11374369,0.00034587,30]
[403915409,1769674590156,-105819.51523533,0.00034587,30]
[403915410,1769674590190,-991920.2682749,0.00034587,30]
[403915411,1769674590224,-82594.13510624,0.00034587,30]
[403915412,1769674590258,-500.0,0.00034587,30]
[403915413,1769674590294,-150.0,0.00034587,30]
[403915414,1769674590327,-952.5743272,0.00034587,90]
[403915415,1769674590359,-514.86837574,0.00034587,30]
[403915416,1769674590392,-794278.60823587,0.00034587,30]
[403915417,1769674590425,-500.0,0.00034587,60]
[403915418,1769674590464,-151.0,0.00034587,60]
[403915419,1769674590500,-151.0,0.00034587,60]
[403915420,1769674590536,-151.0,0.00034587,60]
[403915421,1769674590572,-151.0,0.00034587,60]
[403915422,1769674590606,-500.0,0.00034587,60]
[403915423,1769674590640,-500.0,0.00034587,30]
[403915424,1769674590674,-500.0,0.00034587,30]
[403915425,1769674590707,-500.0,0.00034587,90]
[403915426,1769674590742,-500.0,0.00034587,30]
[403915427,1769674590777,-514.44285418,0.00034587,30]
[403915428,1769674590810,-500.0,0.00034587,60]
[403915429,1769674590845,-151.0,0.00034587,60]
[403915430,1769674590880,-500.15285747,0.00034587,30]
[403915431,1769674591031,-2000.0,0.00034587,32]
[403915432,1769674591066,-170.48125023,0.00034587,30]
[403915433,1769674591099,-156.8794728,0.00034587,31]
[403915434,1769674591135,-173.90957986,0.00034587,30]
[403915435,1769674591175,-70565.55317147,0.00034587,60]
[403915436,1769674591210,-403.0,0.00034587,60]
[403915437,1769674591245,-39292.04724264,0.00034587,30]
[403915438,1769674591275,-424258.3430502,0.00034587,60]
[403915439,1769674591307,-819.02,0.00034587,30]
[403915440,1769674591339,-819.02,0.00034587,30]
[403915441,1769674591370,-819.02,0.00034587,30]
[403915442,1769674591402,-819.02,0.00034587,30]
[403915443,1769674591435,-819.02,0.00034587,30]
[403915444,1769674591468,-819.02,0.00034587,30]
[403915445,1769674591502,-819.02,0.00034587,30]
[403915446,1769674591532,-819.02,0.00034587,30]
[403915447,1769674591564,-819.02,0.00034587,30]
[403915448,1769674591595,-819.02,0.00034587,30]
[403915449,1769674591629,-819.02,0.00034587,30]
[403915450,1769674591662,-819.02,0.00034587,30]
[403915451,1769674591694,-819.02,0.00034587,30]
[403915452,1769674591725,-819.02,0.00034587,30]
[403915453,1769674591758,-819.02,0.00034587,30]
[403915454,1769674591790,-819.02,0.00034587,30]
[403915455,1769674591822,-819.02,0.00034587,30]
[403915456,1769674591855,-819.02,0.00034587,30]
[403915457,1769674591888,-819.02,0.00034587,30]
[403915458,1769674591920,-819.02,0.00034587,30]
[403915459,1769674591954,-819.02,0.00034587,30]
[403915460,1769674591987,-819.02,0.00034587,30]
[403915461,1769674592021,-819.02,0.00034587,30]
[403915462,1769674592055,-819.09511356,0.00034587,30]
[403915463,1769674592089,-231.3654,0.00034587,60]
[403915464,1769674592124,-151.0,0.00034587,60]
[403915465,1769674592156,-151.0,0.00034587,60]
[403915466,1769674592187,-1196.16081723,0.00034587,60]
[403915467,1769674592218,-228.40471069,0.00034587,90]
[403915468,1769674592249,-176.12408236,0.00034587,30]
[403915469,1769674592281,-5031.26782854,0.00034587,30]
[403915470,1769674592313,-500.0,0.00034587,30]
[403915471,1769674592346,-500.0,0.00034587,30]
[403915472,1769674592376,-500.0,0.00034587,30]
[403915473,1769674592409,-500.15920251,0.00034587,30]
[403915474,1769674592443,-500.0,0.00034587,30]
[403915475,1769674592475,-500.0,0.00034587,30]
[403915476,1769674592508,-500.0,0.00034587,30]
[403915477,1769674592540,-374.412979,0.00034587,31]
[403915478,1769674592574,-374.412979,0.00034587,31]
[403915479,1769674592618,-374.412979,0.00034587,31]
[403915480,1769674592653,-374.412979,0.00034587,31]
[403915481,1769674592686,-374.412979,0.00034587,31]
[403915482,1769674592721,-374.412979,0.00034587,31]
[403915483,1769674592757,-374.412979,0.00034587,31]
[403915484,1769674592793,-374.412979,0.00034587,31]
[403915485,1769674592828,-374.412979,0.00034587,31]
[403915486,1769674592864,-374.412979,0.00034587,31]
[403915487,1769674592899,-374.412979,0.00034587,31]
[403915488,1769674592934,-374.412979,0.00034587,31]
[403915489,1769674592970,-374.412979,0.00034587,31]
[403915490,1769674593007,-374.412979,0.00034587,31]
[403915491,1769674593043,-374.412979,0.00034587,31]
[403915492,1769674593080,-374.412979,0.00034587,31]
[403915493,1769674593116,-374.412979,0.00034587,31]
[403915494,1769674593152,-374.412979,0.00034587,31]
[403915495,1769674593193,-374.412979,0.00034587,31]
[403915496,1769674593228,-374.412979,0.00034587,31]
[403915497,1769674593265,-151.0,0.00034587,31]
[403915498,1769674593300,-151.0,0.00034587,31]
[403915499,1769674593336,-151.0,0.00034587,31]
[403915500,1769674593371,-151.0,0.00034587,31]
[403915501,1769674593409,-151.0,0.00034587,31]
[403915502,1769674593445,-151.0,0.00034587,31]
[403915503,1769674593481,-151.0,0.00034587,31]
[403915504,1769674593518,-151.0,0.00034587,31]
[403915505,1769674593554,-151.0,0.00034587,31]
[403915506,1769674593590,-151.0,0.00034587,31]
[403915507,1769674593627,-151.0,0.00034587,31]
[403915508,1769674593663,-151.0,0.00034587,31]
[403915509,1769674593699,-151.0,0.00034587,31]
[403915510,1769674593735,-151.0,0.00034587,31]
[403915511,1769674593907,-151.0,0.00034587,31]
[403915512,1769674593944,-235.0,0.00034587,31]
[403915513,1769674593979,-151.0,0.00034587,31]
[403915514,1769674594016,-151.0,0.00034587,31]
[403915515,1769674594052,-151.0,0.00034587,31]
[403915516,1769674594090,-151.0,0.00034587,31]
[403915517,1769674594126,-151.0,0.00034587,31]
[403915518,1769674594164,-151.0,0.00034587,31]
[403915519,1769674594200,-199.297735,0.00034587,31]
[403915520,1769674594240,-273.764497,0.00034587,31]
[403915521,1769674594277,-273.764497,0.00034587,31]
[403915522,1769674594314,-273.764497,0.00034587,31]
[403915523,1769674594349,-273.764497,0.00034587,31]
[403915524,1769674594383,-273.764497,0.00034587,31]
[403915525,1769674594418,-273.764497,0.00034587,31]
[403915526,1769674594450,-273.764497,0.00034587,31]
[403915527,1769674594484,-273.764497,0.00034587,31]
[403915528,1769674594518,-273.764497,0.00034587,31]
[403915529,1769674594554,-273.764497,0.00034587,31]
[403915530,1769674594588,-273.764497,0.00034587,31]
[403915531,1769674594621,-273.764497,0.00034587,31]
[403915532,1769674594655,-273.764497,0.00034587,31]
[403915533,1769674594687,-273.764497,0.00034587,31]
[403915534,1769674594720,-273.764497,0.00034587,31]
[403915535,1769674594753,-273.764497,0.00034587,31]
[403915536,1769674594785,-273.764497,0.00034587,31]
[403915537,1769674594820,-151.0,0.00034587,31]
[403915538,1769674594853,-273.764497,0.00034587,31]
[403915539,1769674594887,-151.0,0.00034587,31]
[403915540,1769674594920,-273.764497,0.00034587,31]
[403915541,1769674594954,-273.76448825,0.00034587,31]
[403915542,1769674594988,-151.0,0.00034587,31]
[403915543,1769674595024,-151.0,0.00034587,31]
[403915544,1769674595058,-151.0,0.00034587,31]
[403915545,1769674595092,-151.0,0.00034587,31]
[403915546,1769674595126,-151.0,0.00034587,31]
[403915547,1769674595160,-151.0,0.00034587,31]
[403915548,1769674595193,-151.0,0.00034587,31]
[403915549,1769674595227,-262.930765,0.00034587,31]
[403915550,1769674595262,-283.233746,0.00034587,40]
[403915551,1769674595297,-151.0,0.00034587,31]
[403915552,1769674595333,-161.556876,0.00034587,31]
[403915553,1769674595367,-151.0,0.00034587,31]
[403915554,1769674595401,-151.0,0.00034587,31]
[403915555,1769674595436,-151.0,0.00034587,31]
[403915556,1769674595471,-154.351924,0.00034587,31]
[403915557,1769674599355,843.0,0.00034587,30]
[403915558,1769674629102,-297.33336103,0.00023226,32]
[403915559,1769674629155,-269.13018939,0.00023446,56]
[403915560,1769674629193,-297.33336103,0.00023499,48]
[403915561,1769674629232,-297.33336103,0.00023772,63]
[403915562,1769674629271,-297.33336103,0.00024045,79]
[403915563,1769674629308,-297.33336103,0.00024317,94]
[403915564,1769674629345,-269.13018939,0.00024393,110]
[403915565,1769674629381,-297.33336103,0.0002459,110]
[403915566,1769674629415,-18673.26416965,0.00025,30]
[403915567,1769674629450,-2231.54685662,0.00025,30]
[403915568,1769674629486,-5000.0,0.0002603,30]
[403915569,1769674629520,-5000.0,0.0002603,30]
[403915570,1769674629556,-5000.0,0.0002603,30]
[403915571,1769674629592,-5000.0,0.0002603,30]
[403915572,1769674629626,-2280.84,0.0002603,30]
[403915573,1769674629664,-1000.0,0.00026439,30]
[403915574,1769674629700,-1000.0,0.00026439,30]
[403915575,1769674629736,-579.0,0.00026439,30]
[403915576,1769674629771,-161.0,0.00028,30]
[403915577,1769674629805,-160.0,0.00028,30]
[403915578,1769674629847,-211.20195,0.00028767,60]
[403915579,1769674629887,-1000.0,0.00029083,30]
[403915580,1769674629925,-1000.0,0.00029083,30]
[403915581,1769674629965,-1000.0,0.00029083,30]
[403915582,1769674630001,-171.0,0.00029342,34]
[403915583,1769674630040,-239.9,0.000298,30]
[403915584,1769674630076,-219.67600161,0.00029945,30]
[403915585,1769674630112,-1017.03,0.0003,30]
[403915586,1769674630148,-1017.03,0.0003006,30]
[403915587,1769674630188,-219.67600161,0.00030082,30]
[403915588,1769674630224,-624.10497323,0.00030137,120]
[403915589,1769674630260,-156.2004881,0.00030137,120]
[403915590,1769674630297,-347.04440859,0.00030139,120]
[403915591,1769674630338,-219.67600161,0.00030219,30]
[403915592,1769674630375,-44277.96020318,0.000303,30]
[403915593,1769674630411,-219.67600161,0.00030356,30]
[403915594,1769674630447,-4899651.91239923,0.00030387,30]
[403915595,1769674640734,-3521025.06870077,0.00030387,30]